bitfinex-derivatives/quotes_SOLF0:USTF0_20250516
["timestamp","ask_amount","ask_price","bid_price","bid_amount"]
[1747400429540,10.95145537,172.01,171.85,1.8167]
[1747400429850,124.48,172.0,171.88,10.95145537]
[1747400430038,124.48,172.0,171.89,128.327]
[1747400430852,124.48,172.0,171.95,5.8129]
[1747400431451,5.812,171.99,171.95,5.8129]
[1747400432053,5.8122,171.98,171.94,5.8133]
[1747400432247,124.48,172.0,171.94,5.8133]
[1747400432552,124.48,172.0,171.93,5.8137]
[1747400433252,124.48,172.0,171.92,27.28]
[1747400434251,124.72,171.99,171.92,27.28]
[1747400434452,12.51685537,172.04,171.92,27.28]
[1747400434648,124.7,172.03,171.92,27.28]
[1747400435560,12.51685537,172.04,171.92,27.28]
[1747400435854,124.74,172.03,171.92,27.28]
[1747400436151,124.74,172.03,171.93,1.9828]
[1747400437357,5.8118,171.99,171.96,5.8128]
[1747400437558,62.46,172.0,171.96,5.8128]
[1747400438154,68.2716,172.0,171.96,5.8128]
[1747400438452,62.46,172.0,171.96,5.8128]
[1747400438657,5.8121,171.98,171.93,1.9828]
[1747400439157,62.26,171.99,171.93,1.9828]
[1747400440955,5.8122,171.98,171.95,5.8129]
[1747400441459,5.8127,171.97,171.93,1.9828]
[1747400441758,62.26,171.99,171.93,1.9828]
[1747400442453,5.8122,171.98,171.94,5.8132]
[1747400442658,62.26,171.99,171.94,5.8132]
[1747400442959,62.26,171.99,171.93,1.9828]
[1747400443256,5.8126,171.97,171.93,1.9828]
[1747400443457,62.26,171.99,171.93,1.9828]
[1747400443659,68.072,171.99,171.93,1.9828]
[1747400443958,62.26,171.99,171.93,1.9828]
[1747400446353,62.26,171.99,171.96,5.8125]
[1747400446658,62.26,171.99,171.93,1.9828]
[1747400447361,62.26,171.99,171.93,5.8135]
[1747400447867,62.26,171.99,171.92,27.28]
[1747400448365,5.8125,171.97,171.92,27.28]
[1747400448663,62.04,171.96,171.92,33.0939]
[1747400449564,62.04,171.96,171.92,27.28]
[1747400450265,62.26,171.95,171.92,27.28]
[1747400451063,10.95145537,172.0,171.92,27.28]
[1747400451364,124.28,171.99,171.92,27.28]
[1747400451564,10.95145537,172.0,171.92,27.28]
[1747400451865,124.3,171.99,171.92,27.28]
[1747400452169,124.3,171.99,171.96,5.8127]
[1747400452366,124.3,171.98,171.92,27.28]
[1747400452664,62.04,171.97,171.92,27.28]
[1747400453365,62.26,171.97,171.92,27.28]
[1747400453765,62.26,171.97,171.94,5.8131]
[1747400454064,124.22,171.97,171.92,27.28]
[1747400454264,124.22,171.97,171.94,5.8134]
[1747400454563,124.22,171.97,171.92,27.28]
[1747400454867,124.22,171.97,171.94,5.8132]
[1747400455276,124.22,171.97,171.92,27.28]
[1747400456363,124.22,171.97,171.94,5.8132]
[1747400457070,130.0327,171.97,171.93,5.8137]
[1747400457560,12.51685537,172.04,171.92,27.28]
[1747400457561,1.5654,172.04,171.92,27.28]
[1747400457768,62.26,172.0,171.92,27.28]
[1747400458059,1.5654,172.04,171.92,27.28]
[1747400458266,124.14,172.0,171.97,5.8122]
[1747400458560,62.26,172.0,171.92,27.28]
[1747400458765,61.88,172.04,171.93,63.8137]
[1747400458960,61.88,172.04,171.94,62.26]
[1747400459469,61.88,172.04,171.95,1.8912]
[1747400460159,61.88,172.04,172.03,5.8104]
[1747400460368,501.84,172.09,171.97,61.82]
[1747400460561,1.5681,172.13,171.98,61.86]
[1747400460760,61.86,172.1,171.98,61.86]
[1747400461262,61.86,172.1,172.06,5.8091]
[1747400461468,61.86,172.1,171.98,61.86]
[1747400462461,61.86,172.1,171.96,1.9292]
[1747400462860,5.8106,172.03,171.96,1.9292]
[1747400463368,129.5501,172.04,172.0,5.8113]
[1747400463567,10.95145537,172.12,171.96,1.9292]
[1747400464069,5.8096,172.06,172.02,5.8105]
[1747400464262,123.7,172.06,172.02,5.8105]
[1747400464772,5.8101,172.04,172.0,5.8112]
[1747400464969,123.7,172.06,171.96,1.9292]
[1747400465363,5.8104,172.04,171.99,5.8118]
[1747400465660,123.7,172.06,171.99,5.8118]
[1747400465966,123.7,172.06,171.96,1.9292]
[1747400466359,5.8099,172.05,172.01,5.8109]
[1747400466563,123.7,172.06,172.01,5.8109]
[1747400466967,123.7,172.06,172.0,5.8113]
[1747400467169,123.7,172.06,171.96,1.9292]
[1747400467673,5.8106,172.03,171.99,5.8118]
[1747400467872,5.8106,172.03,171.96,1.9292]
[1747400468460,5.8101,172.04,172.0,5.8112]
[1747400468666,123.7,172.06,171.96,1.9292]
[1747400469772,129.5096,172.06,171.96,1.9292]
[1747400470167,123.7,172.06,171.96,1.9292]
[1747400470361,123.7,172.06,172.0,5.8111]
[1747400470970,5.8103,172.04,172.0,5.8111]
[1747400471174,123.7,172.06,171.96,1.9292]
[1747400471773,5.8109,172.02,171.98,5.8121]
[1747400471974,131.4709,172.02,171.98,5.8121]
[1747400472172,125.66,172.02,171.98,5.8121]
[1747400472369,131.4711,172.02,171.96,1.9292]
[1747400472774,125.66,172.02,171.96,1.9292]
[1747400472972,125.66,172.02,172.01,5.8111]
[1747400473566,131.6096,172.06,172.02,5.8107]
[1747400473767,125.8,172.06,171.96,1.9292]
[1747400473975,5.811,172.02,171.96,1.9292]
[1747400474168,131.651,172.02,171.98,5.8118]
[1747400474671,125.84,172.02,171.98,5.8118]
[1747400474873,125.84,172.02,171.99,5.8117]
[1747400475670,125.84,172.02,171.96,1.9292]
[1747400475671,1.5681,172.13,171.96,1.9292]
[1747400475865,64.88,172.12,171.97,65.9]
[1747400476065,64.88,172.12,171.98,64.88]
[1747400476267,5.8084,172.09,172.05,5.8095]
[1747400476472,65.92,172.11,171.98,64.88]
[1747400476670,71.728,172.11,172.07,5.809]
[1747400476972,65.92,172.11,171.98,75.83145537]
[1747400477169,5.8093,172.07,172.02,5.8107]
[1747400477472,65.92,172.11,171.98,75.83145537]
[1747400477673,5.8089,172.08,172.03,5.8102]
[1747400478674,5.8089,172.08,172.04,5.81]
[1747400479078,64.88,172.07,172.0,8.57]
[1747400479374,64.88,172.08,172.0,10.79]
[1747400480376,64.88,172.08,172.05,5.8095]
[1747400480675,64.88,172.08,172.0,10.79]
[1747400480970,64.88,172.08,172.03,38.0]
[1747400481477,64.88,172.08,172.07,5.8091]
[1747400484572,130.28,172.12,172.03,39.9215]
[1747400485171,130.28,172.12,172.1,5.808]
[1747400485378,64.86,172.12,172.1,5.808]
[1747400485579,64.86,172.12,172.09,5.8082]
[1747400486973,64.86,172.12,172.08,5.8086]
[1747400487179,64.86,172.12,172.03,104.7815]
[1747400487476,64.86,172.12,172.04,5.81]
[1747400487676,1.5653,172.11,172.04,5.81]
[1747400487872,1.5653,172.11,172.03,38.0]
[1747400488181,5.8081,172.1,172.03,38.0]
[1747400488371,1.5653,172.11,172.03,38.0]
[1747400488570,64.86,172.12,172.03,38.0]
[1747400489179,64.86,172.12,172.09,5.8081]
[1747400489583,64.86,172.12,172.03,103.18]
[1747400489778,64.86,172.12,172.04,3.7685]
[1747400490379,64.86,172.12,172.09,5.8082]
[1747400490683,64.86,172.12,172.04,3.7685]
[1747400490981,70.6674,172.12,172.08,5.8085]
[1747400491283,70.6674,172.12,172.04,3.7685]
[1747400491678,70.6674,172.12,172.09,5.8082]
[1747400491884,64.86,172.12,172.04,3.7685]
[1747400492182,64.86,172.12,172.09,5.8081]
[1747400493088,70.6674,172.12,172.09,5.8081]
[1747400493386,64.86,172.12,172.08,5.8086]
[1747400494285,64.86,172.12,172.04,3.7685]
[1747400494480,64.86,172.12,172.04,5.7359]
[1747400495882,129.7,172.12,172.04,5.7359]
[1747400496090,5.8082,172.1,172.04,7.9559]
[1747400496275,5.8082,172.1,172.04,5.9885]
[1747400496988,5.8084,172.09,172.06,5.8092]
[1747400497787,129.7,172.12,172.05,32.72]
[1747400498185,5.8079,172.11,172.08,5.8085]
[1747400498391,129.7,172.12,172.05,32.72]
[1747400499484,129.7,172.12,172.09,5.8082]
[1747400500385,129.7,172.12,172.1,5.808]
[1747400501790,135.5074,172.12,172.1,5.808]
[1747400502987,64.86,172.12,172.11,5.8077]
[1747400503390,64.86,172.12,172.05,32.72]
[1747400503692,64.86,172.12,172.09,5.8082]
[1747400504186,5.8078,172.11,172.09,5.8082]
[1747400505093,70.6675,172.12,172.09,5.8082]
[1747400505293,70.6675,172.12,172.1,5.8079]
[1747400505492,64.86,172.12,172.05,32.72]
[1747400506590,64.86,172.12,172.11,5.8077]
[1747400506986,64.86,172.12,172.05,32.72]
[1747400508692,64.86,172.12,172.11,5.8077]
[1747400510093,502.38,172.17,172.07,8.59]
[1747400510299,64.36,172.18,172.08,82.63342285]
[1747400510501,128.6,172.19,172.08,147.05342285]
[1747400510892,64.18,172.19,172.11,6.83602285]
[1747400511099,64.18,172.19,172.18,5.8053]
[1747400511490,64.42,172.2,172.18,5.8053]
[1747400511696,64.42,172.2,172.19,5.805]
[1747400511989,64.18,172.28,172.17,71.01602285]
[1747400512198,64.4,172.27,172.22,5.8037]
[1747400512500,64.38,172.26,172.17,71.01602285]
[1747400512899,64.38,172.26,172.23,5.8036]
[1747400513101,64.38,172.26,172.17,71.01602285]
[1747400513699,70.1827,172.26,172.21,5.8041]
[1747400513903,70.0627,172.26,172.21,5.8041]
[1747400514104,64.26,172.26,172.17,71.01602285]
[1747400514397,64.24,172.27,172.17,135.25602285]
[1747400514799,70.0424,172.27,172.23,5.8034]
[1747400515404,70.0424,172.27,172.23,43.1234]
[1747400516710,70.0424,172.27,172.24,5.8032]
[1747400516910,64.24,172.27,172.23,37.32]
[1747400517608,5.8027,172.26,172.23,37.32]
[1747400518815,64.24,172.27,172.23,37.32]
[1747400519313,5.8033,172.24,172.23,37.32]
[1747400519614,69.9433,172.24,172.23,37.32]
[1747400519915,64.14,172.24,172.23,37.32]
[1747400521914,64.14,172.24,172.23,43.1237]
[1747400522212,64.24,172.27,172.23,37.32]
[1747400522814,64.24,172.27,172.25,5.8028]
[1747400523015,64.14,172.28,172.25,5.8028]
[1747400523310,128.46,172.28,172.23,37.32]
[1747400523910,134.2622,172.28,172.24,5.8032]
[1747400524112,128.46,172.28,172.24,5.8032]
[1747400524514,5.8025,172.27,172.25,5.8029]
[1747400524913,128.46,172.28,172.25,5.8029]
[1747400525102,69.9422,172.28,172.25,5.8029]
[1747400525407,134.1422,172.28,172.25,5.8029]
[1747400526312,13.158,172.39,172.23,37.32]
[1747400526511,64.14,172.32,172.23,37.32]
[1747400526810,129.3,172.32,172.23,37.32]
[1747400527012,5.801,172.31,172.23,37.32]
[1747400527313,129.3,172.32,172.23,37.32]
[1747400527910,69.9409,172.32,172.23,37.32]
[1747400528113,135.0609,172.32,172.23,37.32]
[1747400528417,5.8012,172.31,172.23,37.32]
[1747400529819,129.26,172.32,172.23,37.32]
[1747400530012,64.14,172.32,172.23,37.32]
[1747400530512,69.9409,172.32,172.28,5.8019]
[1747400530914,69.9409,172.32,172.23,37.32]
[1747400531316,64.14,172.32,172.23,37.32]
[1747400532120,5.8012,172.31,172.27,5.8023]
[1747400532321,64.14,172.32,172.27,5.8023]
[1747400532523,64.14,172.32,172.23,37.32]
[1747400533119,6.83602285,172.31,172.23,37.32]
[1747400533322,5.8033,172.24,172.23,37.32]
[1747400533517,134.9433,172.24,172.23,37.32]
[1747400534723,5.8044,172.21,172.12,65.02]
[1747400534924,5.8044,172.21,172.17,5.8054]
[1747400535221,129.14,172.24,172.12,65.02]
[1747400535422,5.8038,172.23,172.18,5.8051]
[1747400535622,5.8038,172.23,172.12,65.02]
[1747400536024,5.804,172.22,172.19,5.8047]
[1747400536323,129.14,172.24,172.19,5.8047]
[1747400536523,129.14,172.24,172.2,5.8046]
[1747400536725,129.14,172.24,172.12,65.02]
[1747400536921,129.14,172.24,172.12,95.41]
[1747400537125,134.9435,172.24,172.21,5.8043]
[1747400540028,5.8049,172.2,172.13,29.11]
[1747400540721,64.74,172.19,172.13,29.11]
[1747400540922,64.86,172.18,172.13,29.11]
[1747400541425,5.8067,172.14,172.13,29.11]
[1747400541628,70.6067,172.14,172.13,29.11]
[1747400542225,64.8,172.14,172.13,29.11]
[1747400543419,64.8,172.14,172.13,34.917]
[1747400547529,64.38,172.17,172.13,29.11]
[1747400548128,64.38,172.17,172.14,5.8066]
[1747400548425,70.1858,172.17,172.14,5.8066]
[1747400548630,64.38,172.17,172.15,5.8064]
[1747400548829,64.38,172.17,172.13,29.11]
[1747400549326,64.38,172.17,172.14,5.8064]
[1747400549830,64.38,172.17,172.15,5.8061]
[1747400550030,64.22,172.17,172.13,29.11]
[1747400550526,64.22,172.17,172.15,5.806]
[1747400550930,64.22,172.17,172.13,29.11]
[1747400551628,64.86,172.18,172.17,5.8057]
[1747400552024,64.18,172.2,172.19,5.805]
[1747400554735,566.5,172.22,172.21,5.8043]
[1747400554927,630.58,172.22,172.21,5.8043]
[1747400555128,128.96,172.22,172.21,5.8043]
[1747400556036,64.88,172.22,172.21,5.8043]
[1747400556931,64.88,172.26,172.25,5.8028]
[1747400557227,128.9,172.26,172.25,5.8028]
[1747400557429,64.88,172.26,172.25,5.8028]
[1747400558237,64.0,172.29,172.26,5.8024]
[1747400558434,64.0,172.29,172.18,63.98]
[1747400558636,5.8026,172.27,172.23,5.8034]
[1747400558834,5.8026,172.27,172.18,63.98]
[1747400559140,5.8026,172.27,172.24,5.8031]
[1747400559738,5.802,172.28,172.25,5.8029]
[1747400560140,566.68,172.3,172.19,11.6101]
[1747400560337,631.28,172.3,172.19,11.6101]
[1747400560635,129.48,172.3,172.19,11.6101]
[1747400561543,129.48,172.3,172.29,5.8016]
[1747400563431,64.88,172.3,172.29,5.8016]
[1747400565143,64.88,172.3,172.23,5.5922]
[1747400567036,64.22,172.33,172.23,5.5922]
[1747400567343,128.46,172.34,172.31,5.8008]
[1747400568140,64.24,172.34,172.33,5.8003]
[1747400568739,64.24,172.34,172.32,5.8005]
[1747400569143,64.24,172.34,172.33,5.8003]
[1747400570145,64.24,172.34,172.32,5.8005]
[1747400570330,64.24,172.34,172.26,64.24]
[1747400570536,5.8004,172.33,172.3,5.8011]
[1747400571438,64.24,172.34,172.23,5.5922]
[1747400571635,64.02,172.32,172.23,5.5922]
[1747400572246,5.8015,172.3,172.27,5.802]
[1747400572444,5.8015,172.3,172.23,5.5922]
[1747400572646,64.02,172.32,172.23,5.5922]
[1747400573447,64.02,172.32,172.3,5.8011]
[1747400573745,63.94,172.33,172.23,39.0622]
[1747400573943,5.8007,172.32,172.3,5.8013]
[1747400574145,63.94,172.33,172.3,5.8013]
[1747400574942,69.7405,172.33,172.3,5.8013]
[1747400579250,5.8006,172.32,172.29,5.8016]
[1747400580747,5.8006,172.32,172.3,5.8012]
[1747400581651,5.8006,172.32,172.29,5.8016]
[1747400581850,5.801,172.31,172.29,5.8016]
[1747400582251,63.94,172.33,172.29,5.8016]
[1747400582752,5.8008,172.32,172.29,5.8016]
[1747400583051,63.94,172.33,172.25,34.4]
[1747400583650,70.04,172.34,172.31,5.8008]
[1747400583851,133.44,172.34,172.31,5.8008]
[1747400584352,70.04,172.34,172.31,5.8008]
[1747400585151,70.04,172.34,172.32,5.8006]
[1747400585453,64.24,172.34,172.26,64.22]
[1747400585844,64.24,172.34,172.33,5.8003]
[1747400586847,63.2,172.36,172.34,5.7998]
[1747400587053,63.2,172.36,172.26,75.8249]
[1747400587351,63.2,172.36,172.28,2.22]
[1747400587551,565.96,172.38,172.35,5.7996]
[1747400587745,629.1,172.38,172.28,2.22]
[1747400588449,565.96,172.38,172.28,2.22]
[1747400588650,629.16,172.38,172.28,2.22]
[1747400589060,64.22,172.38,172.29,63.2]
[1747400589251,64.22,172.38,172.36,5.799]
[1747400589551,64.22,172.38,172.3,76.95088921]
[1747400589752,64.22,172.38,172.37,5.7989]
[1747400590751,68.9977,172.41,172.38,5.7986]
[1747400590949,5.7979,172.4,172.3,76.95088921]
[1747400591145,63.2,172.41,172.3,76.95088921]
[1747400591457,5.7987,172.38,172.3,76.95088921]
[1747400591849,63.2,172.41,172.34,5.7998]
[1747400592049,5.7992,172.37,172.34,5.7998]
[1747400592455,5.7987,172.38,172.35,5.7994]
[1747400592753,63.2,172.41,172.3,70.137]
[1747400593058,63.2,172.41,172.35,5.7994]
[1747400594055,63.2,172.41,172.3,70.137]
[1747400594056,70.01388921,172.41,172.3,70.137]
[1747400594357,70.01388921,172.41,172.3,3.9875]
[1747400594557,70.01388921,172.41,172.32,5.8005]
[1747400594758,70.01388921,172.41,172.3,3.9875]
[1747400595259,5.7996,172.36,172.3,3.9875]
[1747400595553,63.04,172.35,172.3,3.9875]
[1747400595757,63.04,172.35,172.33,5.8]
[1747400596463,63.04,172.35,172.29,51.54]
[1747400596961,5.8005,172.33,172.29,51.54]
[1747400597160,63.04,172.35,172.3,5.8011]
[1747400597353,5.8009,172.32,172.29,51.54]
[1747400597558,68.7809,172.32,172.29,51.54]
[1747400597852,68.7809,172.32,172.3,5.8012]
[1747400598254,62.98,172.32,172.29,51.54]
[1747400598554,62.98,172.32,172.31,5.801]
[1747400604064,62.78,172.35,172.34,5.8]
[1747400604367,62.98,172.36,172.29,51.54]
[1747400604666,62.98,172.36,172.35,5.7996]
[1747400605066,62.98,172.36,172.29,53.3774]
[1747400605869,62.98,172.36,172.34,5.7997]
[1747400606066,62.98,172.36,172.29,53.3774]
[1747400606267,62.98,172.36,172.29,51.54]
[1747400606969,6.81388921,172.35,172.29,51.54]
[1747400607966,5.8005,172.33,172.3,5.8012]
[1747400608170,125.7,172.32,172.29,51.54]
[1747400608673,125.7,172.32,172.3,5.8012]
[1747400608972,62.98,172.32,172.29,51.54]
[1747400609186,125.72,172.32,172.31,5.801]
[1747400611583,125.72,172.32,172.3,5.8012]
[1747400612183,125.72,172.32,172.29,51.54]
[1747400612385,5.8013,172.3,172.29,51.54]
[1747400612582,125.72,172.32,172.29,8.53]
[1747400613286,131.5208,172.32,172.29,14.3316]
[1747400613478,125.72,172.32,172.29,14.3316]
[1747400613786,131.5207,172.32,172.29,14.3316]
[1747400615888,5.801,172.31,172.29,14.3316]
[1747400616090,125.72,172.32,172.29,8.53]
[1747400616590,5.8012,172.31,172.29,14.3316]
[1747400617291,5.8013,172.3,172.29,8.53]
[1747400618084,5.8011,172.31,172.29,8.53]
[1747400618788,125.72,172.32,172.29,8.53]
[1747400619088,125.72,172.32,172.3,5.8011]
[1747400619691,125.72,172.32,172.31,5.801]
[1747400620191,62.36,172.32,172.31,5.801]
[1747400621592,63.0,172.33,172.32,5.8006]
[1747400623495,62.36,172.35,172.34,5.8]
[1747400623694,62.5,172.36,172.28,29.41]
[1747400624096,62.5,172.36,172.35,5.7996]
[1747400625797,62.5,172.36,172.34,5.7999]
[1747400626398,62.5,172.36,172.3,1.8831]
[1747400626695,62.5,172.36,172.29,8.54]
[1747400626895,5.8005,172.33,172.3,5.8012]
[1747400627096,62.44,172.32,172.3,5.8012]
[1747400627686,62.44,172.32,172.31,5.801]
[1747400628591,62.44,172.32,172.29,8.54]
[1747400628997,62.44,172.32,172.29,36.64]
[1747400629399,62.44,172.32,172.3,5.801]
[1747400629799,62.44,172.32,172.29,36.64]
[1747400630201,62.44,172.32,172.31,5.801]
[1747400630405,511.91090547,172.4,172.29,64.45]
[1747400630701,124.72,172.39,172.29,64.45]
[1747400630890,5.7995,172.36,172.33,5.8001]
[1747400631095,62.28,172.35,172.33,5.8001]
[1747400631599,5.7995,172.36,172.34,5.8]
[1747400631798,62.42,172.39,172.29,64.45]
[1747400631998,62.22,172.38,172.3,3.6682]
[1747400632299,5.7991,172.37,172.3,3.6682]
[1747400632499,5.7991,172.37,172.34,5.7996]
[1747400633101,5.7993,172.36,172.34,5.7996]
[1747400633504,62.22,172.38,172.34,5.7996]
[1747400633798,62.22,172.38,172.35,5.7995]
[1747400634006,62.22,172.38,172.3,3.6682]
[1747400634395,68.0188,172.38,172.35,5.7994]
[1747400634600,68.0188,172.38,172.3,3.6682]
[1747400634601,62.22,172.38,172.3,3.6682]
[1747400634800,62.42,172.39,172.31,1.8999]
[1747400635000,124.64,172.39,172.37,5.7987]
[1747400635200,124.62,172.39,172.37,5.7987]
[1747400636100,68.2183,172.39,172.37,5.7987]
[1747400636305,62.42,172.39,172.38,5.7986]
[1747400637908,62.42,172.39,172.37,5.7989]
[1747400638105,62.42,172.39,172.31,1.8999]
[1747400638405,62.42,172.39,172.36,5.7992]
[1747400638906,68.2184,172.39,172.36,5.7992]
[1747400639299,68.2184,172.39,172.37,5.7989]
[1747400639807,62.42,172.39,172.37,5.7989]
[1747400640807,62.42,172.39,172.38,5.7986]
[1747400641413,136.44935866,172.44,172.31,1.8999]
[1747400641711,124.3,172.43,172.33,10.56115699]
[1747400641903,130.0972,172.43,172.4,5.7977]
[1747400642304,68.2172,172.43,172.4,5.7977]
[1747400642610,130.1172,172.43,172.4,5.7977]
[1747400643409,5.7973,172.42,172.4,5.7977]
[1747400643614,5.7973,172.42,172.39,8.0182]
[1747400643803,5.7976,172.41,172.39,2.22]
[1747400644006,124.32,172.43,172.39,2.22]
[1747400644407,5.7975,172.42,172.39,2.22]
[1747400645007,5.7975,172.42,172.39,8.0181]
[1747400645311,62.42,172.43,172.39,2.22]
[1747400646011,62.42,172.43,172.42,5.7973]
[1747400646206,62.42,172.43,172.39,2.22]
[1747400646516,62.42,172.43,172.41,5.7975]
[1747400647009,62.42,172.43,172.42,5.7973]
[1747400647906,62.42,172.43,172.41,5.7975]
[1747400648402,62.42,172.43,172.39,2.22]
[1747400649119,62.42,172.43,172.4,5.7979]
[1747400649305,62.42,172.43,172.39,2.22]
[1747400650312,62.42,172.43,172.42,5.7973]
[1747400652611,62.4,172.47,172.37,67.9984]
[1747400652808,62.4,172.47,172.38,62.4]
[1747400653109,62.4,172.47,172.45,5.7962]
[1747400653411,124.52,172.47,172.38,72.96115699]
[1747400653916,124.52,172.47,172.46,5.7959]
[1747400654210,62.4,172.47,172.46,5.7959]
[1747400655413,62.4,172.47,172.38,72.96115699]
[1747400655914,5.7962,172.46,172.43,5.7967]
[1747400656812,62.4,172.47,172.43,5.7967]
[1747400657015,62.4,172.47,172.38,72.96115699]
[1747400657318,5.7964,172.45,172.38,72.96115699]
[1747400657615,5.7964,172.45,172.42,5.7971]
[1747400658013,5.7964,172.45,172.43,5.7969]
[1747400658912,62.4,172.47,172.43,5.7969]
[1747400659114,5.796,172.46,172.43,5.7969]
[1747400659419,62.4,172.47,172.44,5.7965]
[1747400659613,68.1958,172.47,172.44,5.7965]
[1747400660118,62.4,172.47,172.45,5.7961]
[1747400660919,68.1957,172.47,172.44,5.7965]
[1747400661320,5.7959,172.46,172.44,5.7965]
[1747400661525,62.4,172.47,172.38,72.96115699]
[1747400662023,5.7961,172.46,172.38,72.96115699]
[1747400662718,5.7961,172.46,172.43,5.7967]
[1747400663223,62.4,172.47,172.38,72.96115699]
[1747400664823,62.4,172.47,172.38,62.4]
[1747400665121,62.4,172.47,172.43,5.7968]
[1747400665427,68.1957,172.47,172.43,5.7968]
[1747400665623,68.1957,172.47,172.44,5.7965]
[1747400665921,62.4,172.47,172.44,5.7965]
[1747400666718,68.1956,172.47,172.44,5.7965]
[1747400667016,62.4,172.47,172.44,5.7965]
[1747400667517,62.4,172.47,172.45,5.796]
[1747400668127,62.4,172.47,172.38,62.4]
[1747400668424,62.4,172.47,172.38,72.96115699]
[1747400668625,62.4,172.47,172.46,5.7959]
[1747400669321,62.4,172.47,172.45,5.7962]
[1747400669627,62.4,172.47,172.38,72.96115699]
[1747400671227,62.4,172.47,172.39,33.15]
[1747400671624,62.4,172.47,172.46,5.7959]
[1747400672422,62.4,172.47,172.45,5.7961]
[1747400672624,62.4,172.47,172.39,33.15]
[1747400673729,5.796,172.46,172.39,33.15]
[1747400673924,62.4,172.47,172.39,33.15]
[1747400674119,68.1958,172.47,172.43,5.7967]
[1747400674318,62.4,172.47,172.43,5.7967]
[1747400675430,62.4,172.47,172.44,5.7966]
[1747400675732,62.4,172.47,172.39,33.15]
[1747400676828,68.1957,172.47,172.39,33.15]
[1747400677032,62.4,172.47,172.39,33.15]
[1747400677526,62.4,172.47,172.45,5.7961]
[1747400678032,62.4,172.47,172.46,5.7959]
[1747400681236,62.4,172.47,172.45,5.7961]
[1747400684430,62.4,172.47,172.39,33.15]
[1747400686731,62.4,172.47,172.4,5.7977]
[1747400687138,5.7969,172.44,172.4,5.7977]
[1747400687339,62.78,172.44,172.39,33.15]
[1747400687940,501.16,172.54,172.43,10.56115699]
[1747400688126,62.3,172.55,172.46,10.56115699]
[1747400688331,125.14,172.57,172.45,1.9954]
[1747400688531,5.7928,172.56,172.5,5.7943]
[1747400688738,125.14,172.57,172.45,1.9954]
[1747400688938,5.7931,172.55,172.5,5.7944]
[1747400689250,125.14,172.57,172.45,1.9954]
[1747400689431,130.9324,172.57,172.52,5.7936]
[1747400689627,125.14,172.57,172.45,1.9954]
[1747400690038,5.793,172.55,172.51,5.794]